bitfinex/quotes_ETHUSD_20240729
["timestamp","ask_amount","ask_price","bid_price","bid_amount"]
[1722245106663,1.067,3395.3,3395.0,2.4811]
[1722245106857,0.03,3395.4,3395.0,2.4811]
[1722245107061,1.097,3395.4,3395.0,2.4811]
[1722245107545,3.45315,3395.4,3395.0,2.4811]
[1722245108144,1.097,3395.4,3395.0,2.4811]
[1722245108342,0.03,3395.4,3395.0,4.89634349]
[1722245108742,0.03,3395.4,3395.1,18.75632437]
[1722245109352,0.03,3395.4,3395.1,21.11265437]
[1722245109547,0.03,3395.4,3395.1,18.75632437]
[1722245109949,0.03,3395.4,3395.1,21.11265437]
[1722245111058,0.03,3395.4,3395.2,0.05890348]
[1722245111245,0.03,3395.4,3395.3,7.11558]
[1722245111877,0.03,3395.4,3395.3,4.75939]
[1722245112075,0.03,3395.4,3395.3,4.81828501]
[1722245112586,0.03,3395.4,3395.3,2.4032]
[1722245113143,1.097,3395.4,3395.3,2.4032]
[1722245113379,1.097,3395.4,3395.1,18.75632437]
[1722245113577,1.047,3395.4,3395.1,18.75632437]
[1722245113780,1.047,3395.4,3395.1,21.11264437]
[1722245113950,1.067,3395.6,3395.1,21.11264437]
[1722245114479,2.35573,3396.0,3395.3,2.35617]
[1722245114637,1.067,3395.8,3395.4,21.19542437]
[1722245114838,1.067,3395.9,3395.6,2.35598]
[1722245116275,1.067,3395.9,3395.5,0.05889704]
[1722245116484,3.42278,3395.9,3395.4,23.55154437]
[1722245116890,3.42278,3395.9,3395.4,21.19542437]
[1722245117184,3.42292,3395.7,3395.4,18.75632437]
[1722245117762,1.067,3395.7,3395.4,18.75632437]
[1722245120593,1.067,3395.7,3395.5,18.75632437]
[1722245122751,1.067,3395.9,3395.5,18.75632437]
[1722245123579,1.067,3395.9,3395.6,2.4467]
[1722245124820,1.067,3395.7,3395.6,2.4467]
[1722245126699,3.661573,3395.7,3394.4,26.18632437]
[1722245126873,2.35668,3394.6,3394.5,18.75632437]
[1722245127200,2.35668,3394.6,3393.8,0.91866147]
[1722245127201,2.35682,3394.4,3394.3,18.75632437]
[1722245127503,4.71364,3394.4,3394.3,18.75632437]
[1722245127661,5.78064,3394.4,3394.3,18.75632437]
[1722245130203,3.42382,3394.4,3394.3,18.75632437]
[1722245130413,2.35664,3394.7,3394.3,18.75632437]
[1722245130701,3.42382,3394.4,3394.3,18.75632437]
[1722245131207,5.78064,3394.4,3394.3,18.75632437]
[1722245131609,3.42382,3394.4,3394.3,18.75632437]
[1722245132309,1.067,3394.4,3394.3,18.75632437]
[1722245132477,1.067,3394.4,3393.8,18.75632437]
[1722245132678,2.3567,3394.6,3394.0,2.35709]
[1722245133010,1.067,3394.4,3393.9,18.75632437]
[1722245133315,2.35689,3394.3,3393.9,18.75632437]
[1722245133477,1.067,3394.2,3393.9,18.75632437]
[1722245134076,2.35674,3394.6,3393.9,18.75632437]
[1722245134283,1.067,3394.3,3393.9,21.11348437]
[1722245136508,1.067,3394.3,3393.9,18.75632437]
[1722245138084,1.067,3394.3,3393.9,21.11348437]
[1722245138529,1.067,3394.5,3394.0,18.75632437]
[1722245141353,3.42376,3394.5,3394.0,18.75632437]
[1722245141647,2.35682,3394.4,3394.0,18.75632437]
[1722245143142,2.35703,3394.1,3394.0,18.75632437]
[1722245144105,3.42403,3394.1,3394.0,18.75632437]
[1722245144500,3.42403,3394.1,3393.8,18.75632437]
[1722245145637,3.42389,3394.3,3393.8,18.75632437]
[1722245145825,2.35696,3394.2,3393.8,18.75632437]
[1722245147842,2.35703,3394.1,3393.8,18.75632437]
[1722245149325,2.35717,3393.9,3393.8,18.75632437]
[1722245149554,3.42417,3393.9,3393.8,18.75632437]
[1722245150335,2.35717,3393.9,3393.8,18.75632437]
[1722245150663,4.64458,3394.5,3393.8,18.75632437]
[1722245150664,3.42391,3394.3,3393.9,2.4422]
[1722245150863,2.35696,3394.2,3393.9,2.4422]
[1722245151164,2.35717,3393.9,3393.8,18.75632437]
[1722245151529,5.78134,3393.9,3393.8,18.75632437]
[1722245152672,3.42417,3393.9,3393.8,18.75632437]
[1722245153573,6.588247,3393.9,3393.8,18.75632437]
[1722245154148,8.945417,3393.9,3393.8,18.75632437]
[1722245154483,11.945417,3393.9,3393.8,18.75632437]
[1722245154974,9.588247,3393.9,3393.8,18.75632437]
[1722245155194,11.945417,3393.9,3393.8,18.75632437]
[1722245156389,14.233217,3393.9,3393.8,18.75632437]
[1722245156586,17.140387,3393.9,3393.8,18.75632437]
[1722245158344,14.783217,3393.9,3393.8,18.75632437]
[1722245159592,8.78134,3393.9,3393.8,18.75632437]
[1722245160481,11.13851,3393.9,3393.8,18.75632437]
[1722245161197,12.93904759,3393.9,3393.8,18.75632437]
[1722245161378,13.48904759,3393.9,3393.8,18.75632437]
[1722245161548,10.58187759,3393.9,3393.8,18.75632437]
[1722245165250,8.02287759,3393.9,3393.8,18.75632437]
[1722245165383,5.02287759,3393.9,3393.8,18.75632437]
[1722245165567,2.66570759,3393.9,3393.8,18.75632437]
[1722245165895,0.30853759,3393.9,3393.8,18.75632437]
[1722245167776,2.66570759,3393.9,3393.8,18.75632437]
[1722245168093,5.02287759,3393.9,3393.8,18.75632437]
[1722245168296,2.35723,3393.8,3393.7,2.2691]
[1722245168500,0.30853759,3393.9,3393.7,2.2691]
[1722245168796,2.35723,3393.8,3393.7,2.2691]
[1722245172126,2.35697,3394.2,3393.7,2.2691]
[1722245172323,2.35697,3394.2,3393.7,2.49601]
[1722245172487,0.30850556,3394.3,3393.7,4.8533]
[1722245172819,0.30850556,3394.3,3393.7,2.49601]
[1722245172820,2.35696,3394.2,3393.7,2.49601]
[1722245172981,2.35696,3394.2,3393.8,0.485343]
[1722245173292,2.35696,3394.2,3393.7,2.49601]
[1722245173506,0.30850556,3394.3,3393.7,2.49601]
[1722245173670,2.35696,3394.2,3393.7,2.49601]
[1722245174077,2.35704,3394.1,3393.7,2.49601]
[1722245174277,2.35696,3394.2,3393.7,2.49601]
[1722245174479,2.35703,3394.1,3393.7,2.49601]
[1722245174878,2.35703,3394.1,3393.8,0.485345]
[1722245175314,2.66544556,3394.3,3393.8,0.485345]
[1722245175533,0.30850556,3394.3,3393.9,2.3435]
[1722245175683,0.30850556,3394.3,3394.0,0.5412965]
[1722245176183,2.3567,3394.6,3394.0,0.5412965]
[1722245176405,2.35682,3394.4,3394.0,0.5412965]
[1722245177115,2.35682,3394.4,3394.0,19.29762087]
[1722245178916,2.35689,3394.3,3394.0,19.29762087]
[1722245179115,2.35689,3394.3,3394.0,18.75632437]
[1722245180497,2.35691,3394.3,3394.0,18.75632437]
[1722245181998,2.35696,3394.2,3394.0,18.75632437]
[1722245183022,2.35696,3394.2,3393.9,2.3435]
[1722245183225,3.42296,3394.2,3393.9,2.3435]
[1722245184024,2.35703,3394.1,3393.9,2.3435]
[1722245184226,2.3573,3393.8,3393.3,2.4972]
[1722245184429,2.35736,3393.7,3393.3,2.4972]
[1722245184923,2.35721,3393.9,3393.3,2.4972]
[1722245185130,1.066,3394.1,3393.4,2.4601]
[1722245185622,2.3571,3394.0,3393.4,4.81761]
[1722245185793,2.35727,3393.8,3393.4,2.4601]
[1722245185986,2.3571,3394.0,3393.4,2.4601]
[1722245187399,2.35728,3393.8,3393.4,2.4601]
[1722245188428,1.066,3393.9,3393.4,2.4601]
[1722245188592,3.42298,3394.2,3393.6,2.4601]
[1722245188796,2.3571,3394.0,3393.6,2.4601]
[1722245191002,2.35728,3393.8,3393.6,2.4601]
[1722245192824,2.3573,3393.7,3393.6,2.4601]
[1722245194245,2.3573,3393.7,3393.2,21.11832437]
[1722245194246,2.35755,3393.4,3393.2,21.11832437]
[1722245194410,1.066,3393.3,3393.2,21.11832437]
[1722245194615,2.35755,3393.4,3393.2,21.11832437]
[1722245194816,2.35741,3393.6,3393.2,21.11832437]
[1722245195020,3.42331,3393.7,3393.2,2.362]
[1722245196481,2.35726,3393.8,3393.2,2.362]
[1722245196744,2.35717,3393.9,3393.3,2.362]
[1722245197521,3.42317,3393.9,3393.3,2.362]
[1722245197721,2.3571,3394.0,3393.3,4.71952]
[1722245197939,3.4231,3394.0,3393.3,4.71952]
[1722245198454,3.42326,3393.8,3393.3,2.362]
[1722245198672,2.35731,3393.7,3393.3,2.362]
[1722245198811,2.35738,3393.6,3393.3,2.362]
[1722245199325,3.42338,3393.6,3393.3,2.362]
[1722245199508,5.78082,3393.6,3393.3,2.362]
[1722245199708,3.42338,3393.6,3393.3,2.362]
[1722245200305,2.35751,3393.4,3393.3,2.362]
[1722245200519,2.35745,3393.5,3393.3,2.362]
[1722245200919,2.35751,3393.4,3393.3,2.362]
[1722245202719,3.42342,3393.6,3393.3,2.362]
[1722245202927,2.35745,3393.5,3393.3,2.362]
[1722245205954,2.35751,3393.4,3393.3,2.362]
[1722245207031,3.42342,3393.6,3393.3,2.362]
[1722245209264,1.066,3393.6,3393.3,2.362]
[1722245209558,2.35733,3393.7,3393.3,2.362]
[1722245209559,4.7144,3393.9,3393.3,2.362]
[1722245209763,1.066,3393.8,3393.3,2.362]
[1722245209927,2.35731,3393.7,3393.3,2.362]
[1722245210328,1.066,3393.8,3393.3,2.362]
[1722245210760,3.42328,3393.8,3393.3,2.362]
[1722245210961,2.35742,3393.6,3393.3,2.362]
[1722245211131,1.066,3393.4,3393.3,2.362]
[1722245213639,2.35746,3393.5,3393.3,2.362]
[1722245214444,1.066,3393.6,3393.3,2.362]
[1722245214633,3.42337,3393.6,3393.3,2.362]
[1722245216845,1.066,3393.7,3393.3,2.362]
[1722245225886,2.09333646,3393.9,3393.3,4.71958]
[1722245226084,1.066,3393.9,3393.4,2.3099]
[1722245226403,1.066,3393.9,3393.4,4.6674]
[1722245226575,4.066,3393.9,3393.4,4.6674]
[1722245228678,4.066,3393.9,3393.4,2.3099]
[1722245230332,0.30848258,3394.0,3393.4,2.3099]
[1722245230495,1.37448258,3394.0,3393.4,2.3099]
[1722245230698,1.37448258,3394.0,3393.6,2.3784]
[1722245231414,1.37448258,3394.0,3393.6,4.73577]
[1722245231715,0.30848258,3394.0,3393.6,4.73577]
[1722245234913,0.30848258,3394.0,3393.6,2.35737]
[1722245235118,0.30848258,3394.0,3393.7,2.2851]
[1722245236090,1.066,3393.8,3393.7,2.2851]
[1722245236415,1.066,3393.8,3393.3,2.3078]
[1722245236634,1.066,3393.5,3393.3,2.3078]
[1722245236986,1.21732784,3394.0,3393.3,2.3078]
[1722245236987,1.066,3393.7,3393.3,2.3078]
[1722245239722,3.42336,3393.7,3393.3,2.3078]
[1722245239927,1.066,3393.7,3393.3,2.3078]
[1722245241931,2.35738,3393.6,3393.3,2.3078]
[1722245242118,1.066,3393.7,3393.3,2.3078]
[1722245243605,2.35738,3393.6,3393.3,2.3078]
[1722245243996,1.066,3393.7,3393.3,2.3078]
[1722245244716,1.066,3393.9,3393.3,4.66534]
[1722245245041,1.066,3393.9,3393.4,2.4716]
[1722245245909,0.30848258,3394.0,3393.5,2.35744]
[1722245246139,0.30848258,3394.0,3393.8,2.35723]
[1722245246434,1.066,3394.7,3394.1,2.2799]
[1722245246638,1.066,3394.7,3394.3,2.2799]
[1722245246839,0.30843625,3394.8,3394.3,2.2799]
[1722245247044,0.30843625,3394.8,3394.4,2.35681]
[1722245247245,0.30843625,3394.8,3394.3,2.2799]
[1722245248315,1.37443625,3394.8,3394.3,2.2799]
[1722245250736,2.35661,3394.7,3394.3,2.2799]
[1722245250930,2.35668,3394.6,3394.3,2.2799]
[1722245251335,2.35675,3394.5,3394.3,2.2799]
[1722245252046,1.066,3394.6,3394.3,2.2799]
[1722245252211,3.4227,3394.6,3394.3,2.2799]
[1722245252547,1.066,3394.6,3394.3,2.2799]
[1722245253108,3.73101625,3394.8,3394.3,2.743593]
[1722245253545,1.37443625,3394.8,3394.3,21.49991737]
[1722245254312,1.37443625,3394.8,3394.3,21.03622437]
[1722245255013,3.73098625,3394.8,3394.3,21.03622437]
[1722245256348,1.37443625,3394.8,3394.3,21.03622437]
[1722245257616,0.30843625,3394.8,3394.3,23.39311437]
[1722245258224,0.30843625,3394.8,3394.4,2.2554]
[1722245258644,1.37443625,3394.8,3394.4,2.2554]
[1722245258854,3.73097625,3394.8,3394.4,2.2554]
[1722245260753,2.35662,3394.7,3394.4,2.2554]
[1722245262553,2.35669,3394.6,3394.4,2.2554]
[1722245262761,2.35662,3394.7,3394.4,2.2554]
[1722245266325,1.37443625,3394.8,3394.4,2.2554]
[1722245266523,0.30843625,3394.8,3394.4,2.2554]
[1722245266843,4.71275,3395.1,3394.5,2.3459]
[1722245267174,2.35635,3395.1,3394.5,2.3459]
[1722245267623,2.3564,3395.0,3394.5,2.3459]
[1722245267822,2.3564,3395.0,3394.5,2.94739497]
[1722245269329,2.35648,3394.9,3394.5,2.94739497]
[1722245271380,2.35648,3394.9,3394.5,2.3459]
[1722245271677,3.42235,3395.1,3394.5,2.3459]
[1722245271887,2.35653,3394.9,3394.5,2.3459]
[1722245272055,4.71307,3394.9,3394.5,2.3459]
[1722245272380,2.35665,3394.7,3394.5,2.3459]
[1722245275456,3.42248,3394.9,3394.5,2.3459]
[1722245275645,2.35658,3394.8,3394.5,2.3459]
[1722245276446,2.35635,3395.1,3394.5,2.3459]
[1722245276674,3.42235,3395.1,3394.5,2.3459]
[1722245277259,2.35651,3394.9,3394.5,2.3459]
[1722245282007,2.35635,3395.1,3394.5,2.3459]
[1722245282211,2.35641,3395.0,3394.5,2.3459]
[1722245284584,3.42221,3395.3,3394.5,4.70259]
[1722245284792,2.35627,3395.2,3394.5,2.3459]
[1722245285318,1.066,3395.1,3394.5,2.35675]
[1722245285606,1.066,3395.1,3394.6,2.2516]
[1722245287080,1.066,3395.1,3394.7,2.35655]
[1722245287281,3.42225,3395.3,3394.6,2.2516]
[1722245288114,2.35628,3395.2,3394.6,2.2516]
[1722245288454,2.35639,3395.1,3394.6,2.2516]
[1722245288703,1.066,3395.1,3394.6,2.2516]
[1722245288911,2.35641,3395.0,3394.6,2.2516]
[1722245289790,2.35628,3395.2,3394.6,2.2516]
[1722245290789,0.30842566,3395.5,3394.3,2.35687]
[1722245290790,0.30842566,3395.5,3394.9,2.35642]
[1722245291003,0.30842566,3395.5,3395.2,2.4893]
[1722245291291,0.30842566,3395.5,3395.3,4.84548]
[1722245291490,2.35743579,3396.1,3395.3,4.84548]
[1722245291491,2.35743579,3396.1,3395.4,5.91142]
[1722245291696,2.35743579,3396.1,3395.5,2.4893]
[1722245291697,0.00176579,3396.1,3395.5,2.4893]
[1722245292192,2.35740579,3396.1,3395.5,2.4893]
[1722245292495,2.35571,3396.0,3395.5,2.4893]
[1722245294073,2.3558,3395.9,3395.5,2.4893]
[1722245296260,1.066,3396.0,3395.5,2.4893]
[1722245296716,2.35745579,3396.1,3395.5,2.4893]
[1722245298524,2.35571,3396.0,3395.5,2.4893]
[1722245302627,0.00176579,3396.1,3395.5,4.84535]
[1722245302790,0.00176579,3396.1,3395.6,2.3454]
[1722245303488,0.00176579,3396.1,3395.6,2.35597]
[1722245303686,0.00176579,3396.1,3395.7,2.35585]
[1722245303884,0.00176579,3396.1,3395.9,2.35572]
[1722245304113,0.00176579,3396.1,3396.0,2.2652]
[1722245304319,0.00176579,3396.1,3396.0,3.07536651]
[1722245309737,0.00176579,3396.1,3396.0,2.2652]
[1722245317307,0.00176579,3396.1,3396.0,4.62091]
[1722245318310,0.00176579,3396.1,3396.0,2.2652]
[1722245319846,0.00176579,3396.1,3396.0,4.62091]
[1722245320343,0.00176579,3396.1,3396.0,2.2652]
[1722245322815,0.00176579,3396.1,3396.0,4.67979628]
[1722245324222,0.00176579,3396.1,3396.0,4.62091]
[1722245325942,0.00176579,3396.1,3396.0,2.2652]
[1722245327445,0.00176579,3396.1,3396.0,4.62091]
[1722245328062,0.00176579,3396.1,3396.0,4.67979621]
[1722245328564,0.00176579,3396.1,3396.0,7.03550244]
[1722245334756,2.35468,3397.5,3396.0,7.03550244]
[1722245334757,2.35728309,3398.0,3396.4,2.35537]
[1722245335064,0.31131157,3398.0,3397.1,4.8152]
[1722245335264,2.66563157,3398.0,3397.1,3.4209]
[1722245335470,2.66563157,3398.0,3397.3,2.4603]
[1722245335471,0.31131157,3398.0,3397.3,2.4603]
[1722245335771,1.37731157,3398.0,3397.3,2.4603]
[1722245336067,2.35457,3397.7,3397.3,2.4603]
[1722245336572,2.5049,3397.6,3397.3,2.4603]
[1722245337240,0.15029,3397.6,3397.3,2.4603]
[1722245337668,2.35471,3397.5,3397.0,18.75632437]
[1722245337868,1.21629,3397.6,3397.0,18.75632437]
[1722245337869,1.066,3397.4,3397.0,18.75632437]
[1722245338164,2.35492,3397.2,3397.0,18.75632437]
[1722245338567,2.35494,3397.1,3397.0,18.75632437]
[1722245340458,1.066,3397.2,3397.0,18.75632437]
[1722245340675,1.066,3397.2,3396.5,21.12902437]
[1722245340871,2.50494,3397.6,3396.8,1.066]
[1722245341074,2.35468,3397.5,3396.8,1.066]
[1722245341386,2.35468,3397.5,3396.7,2.2679]
[1722245341387,2.35481,3397.3,3396.7,2.2679]
[1722245341575,2.35467,3397.5,3396.7,2.2679]
[1722245341746,3.0,3397.5,3396.7,2.2679]
[1722245341950,2.35478,3397.4,3396.7,2.2679]
[1722245343183,4.066,3397.5,3396.7,2.2679]
[1722245343184,2.35482,3397.3,3396.7,2.2679]
[1722245343573,2.35501,3397.1,3396.7,2.2679]
[1722245343752,2.35503,3397.0,3396.7,2.2679]
[1722245344312,2.35488,3397.2,3396.7,2.2679]
[1722245344787,3.0,3397.5,3396.7,2.2679]
[1722245344788,2.35481,3397.3,3396.7,2.2679]
[1722245345160,2.50489,3397.6,3396.8,2.35513]
[1722245345360,2.50489,3397.6,3396.5,18.75632437]
[1722245345361,0.15029,3397.6,3396.9,2.3802]
[1722245345600,0.15029,3397.6,3396.9,4.73528]
[1722245346071,0.15029,3397.6,3396.9,2.3802]
[1722245346485,0.15029,3397.6,3396.9,4.73526]
[1722245346687,0.15029,3397.6,3397.0,0.473526]
[1722245347388,0.15029,3397.6,3396.9,2.3802]
[1722245347765,2.50489,3397.6,3396.9,2.3802]
[1722245348089,0.15029,3397.6,3396.9,2.3802]
[1722245348889,0.15029,3397.6,3396.9,4.73527]
[1722245350081,0.15029,3397.6,3397.1,2.3539]
[1722245350401,0.15029,3397.6,3397.2,0.470891]
[1722245351171,0.15029,3397.6,3397.3,2.4598]
[1722245359530,2.35471,3397.5,3397.3,2.4598]
[1722245359912,2.50489,3397.6,3397.3,2.4598]
[1722245360426,2.35468,3397.5,3397.3,2.4598]
[1722245361501,2.50492,3397.6,3397.3,2.4598]
[1722245363413,2.35467,3397.5,3397.3,2.4598]
[1722245363751,2.35474,3397.4,3397.3,2.4598]
[1722245364037,4.85958,3397.6,3397.3,2.4598]
[1722245364242,2.50492,3397.6,3397.3,2.4598]
[1722245365631,2.35474,3397.4,3397.3,2.4598]
[1722245365841,2.35488,3397.2,3397.1,18.75632437]
[1722245366040,4.70976,3397.2,3397.1,18.75632437]
[1722245367014,2.35488,3397.2,3397.1,18.75632437]
[1722245367242,3.0,3397.5,3397.1,21.06462437]
[1722245367614,2.81328746,3397.6,3397.1,21.06462437]
[1722245367615,0.45867746,3397.6,3397.1,21.06462437]
[1722245367820,2.81332746,3397.6,3397.1,22.12762437]
[1722245368642,2.81332746,3397.6,3397.1,21.06462437]
[1722245368846,2.35467,3397.5,3397.1,21.06462437]
[1722245369352,0.45867746,3397.6,3397.1,21.06462437]
[1722245369755,2.81331746,3397.6,3397.1,21.06462437]
[1722245369963,1.063,3397.5,3397.1,21.06462437]
[1722245370125,2.35534,3396.6,3396.4,7.43]
[1722245370326,3.41836,3396.5,3396.4,7.43]
[1722245370531,2.35543,3396.4,3396.3,21.05962437]
[1722245370854,2.35543,3396.4,3396.3,18.75632437]
[1722245371055,2.35533,3396.6,3396.3,18.75632437]
[1722245371439,2.35522,3396.8,3396.3,18.75632437]
[1722245371642,3.0,3397.1,3396.6,2.2628]
[1722245371840,2.35481,3397.3,3396.6,2.2628]
[1722245371841,2.35502,3397.0,3396.6,2.2628]
[1722245372165,2.35502,3397.0,3396.6,2.32167618]
[1722245372366,2.35481,3397.3,3396.6,2.32167618]
[1722245372569,0.45867746,3397.6,3396.6,3.38467618]
[1722245372873,2.35467,3397.5,3396.7,0.23216762]
[1722245373055,2.35467,3397.5,3396.9,2.4926]
[1722245373263,2.35467,3397.5,3397.0,0.33723195]
[1722245373773,2.35475,3397.4,3397.0,0.33723195]
[1722245373933,2.35475,3397.4,3396.9,2.4926]
[1722245374134,2.35483,3397.3,3396.9,2.4926]
[1722245374364,3.41768,3397.5,3396.9,2.4926]
[1722245374365,2.35489,3397.2,3396.9,2.4926]
[1722245375079,0.45867746,3397.6,3396.9,2.4926]
[1722245375080,1.063,3397.3,3396.9,2.4926]
[1722245375372,2.355,3397.1,3396.9,2.4926]
[1722245375670,3.41781,3397.3,3396.9,2.4926]
[1722245375883,2.35489,3397.2,3396.9,2.4926]
[1722245376587,2.35474,3397.4,3396.9,2.4926]
[1722245376948,2.35495,3397.1,3396.9,2.4926]
[1722245377761,2.35501,3397.0,3396.9,2.4926]
[1722245380065,2.35522,3396.7,3396.6,18.75632437]
[1722245380290,3.41822,3396.7,3396.6,18.75632437]
[1722245380788,2.35522,3396.7,3396.6,18.75632437]
[1722245381193,2.35475,3397.4,3396.6,18.75632437]
[1722245381355,2.35495,3397.1,3396.6,18.75632437]
[1722245381850,3.0,3397.2,3396.6,18.75632437]
[1722245382057,1.063,3397.3,3396.6,18.75632437]
[1722245382257,2.35491,3397.2,3396.6,18.75632437]
[1722245382479,2.35501,3397.0,3396.5,2.3891]
[1722245382655,2.35491,3397.2,3396.5,2.3891]
[1722245382854,5.35491,3397.2,3396.5,2.3891]
[1722245383051,2.35495,3397.1,3396.5,2.3891]
[1722245383256,2.35502,3397.0,3396.5,2.3891]
[1722245385375,2.35508,3396.9,3396.5,2.3891]
[1722245385582,1.063,3397.1,3396.5,2.3891]
[1722245386584,2.35529,3396.6,3396.5,2.3891]
[1722245389024,2.35523,3396.7,3396.4,18.75632437]
[1722245389025,4.71072,3396.5,3396.4,18.75632437]
[1722245389625,5.77372,3396.5,3396.4,18.75632437]
[1722245391227,4.71086,3396.4,3396.3,18.75632437]
[1722245392307,2.35543,3396.4,3396.3,18.75632437]
[1722245397255,3.41836,3396.5,3396.2,2.3973]
[1722245397256,2.3555,3396.3,3396.2,2.3973]
[1722245397725,3.41836,3396.5,3396.2,2.3973]
[1722245397726,2.35544,3396.4,3396.2,2.3973]
[1722245399378,2.3555,3396.3,3396.2,2.3973]
[1722245399845,3.41837,3396.5,3396.2,2.3973]
[1722245400048,2.35511,3396.9,3396.3,0.05888605]
[1722245400243,2.66311272,3397.3,3396.4,2.2873]
[1722245400244,3.41793,3397.2,3396.4,2.2873]
[1722245400482,2.35496,3397.1,3396.5,2.42547537]
[1722245400699,2.35496,3397.1,3396.7,2.3666]
[1722245400700,2.35502,3397.0,3396.7,2.3666]
[1722245400830,3.41802,3397.0,3396.7,2.3666]
[1722245401263,1.063,3397.0,3396.7,2.3666]
[1722245401836,2.66308272,3397.3,3396.8,0.05887558]
[1722245402093,1.063,3397.1,3396.8,0.05887558]
[1722245402297,1.37125272,3397.3,3396.8,0.30142314]
[1722245402470,2.35468,3397.5,3396.9,2.404]
[1722245402471,2.35474,3397.4,3396.9,2.404]
[1722245402632,2.35474,3397.4,3396.9,2.46286977]
[1722245402833,3.56789,3397.6,3397.0,0.32941121]
[1722245403082,3.56789,3397.6,3397.0,0.27054173]
[1722245403411,1.063,3397.4,3397.0,0.27054173]
[1722245405112,1.063,3397.2,3397.0,0.27054173]
[1722245405266,1.063,3397.2,3396.9,2.404]
[1722245405610,2.3549,3397.2,3396.9,2.404]
[1722245405914,2.35501,3397.0,3396.9,2.404]
[1722245406422,2.35501,3397.0,3396.5,2.4792]
[1722245406767,2.35509,3396.9,3396.5,2.4792]
[1722245407412,2.35516,3396.8,3396.5,2.4792]
[1722245407570,2.35509,3396.9,3396.5,2.4792]
[1722245407919,2.35496,3397.1,3396.5,2.53807672]
[1722245408101,2.35482,3397.3,3396.5,2.53807672]
[1722245408285,2.35482,3397.3,3396.6,0.05887441]
[1722245409124,2.35482,3397.3,3396.5,4.83456]
[1722245409622,2.35488,3397.2,3396.5,2.4792]
[1722245409847,2.35496,3397.1,3396.5,2.4792]
[1722245410341,2.35486,3397.3,3396.6,0.05887307]
[1722245410497,5.35473,3397.5,3396.7,2.3121]
[1722245410699,2.35475,3397.4,3396.8,0.05887156]
[1722245411558,2.35475,3397.4,3396.7,2.3121]
[1722245411559,2.35482,3397.3,3396.7,2.3121]
[1722245411861,3.0,3397.5,3396.7,2.3121]
[1722245411862,2.35502,3397.0,3396.7,2.3121]
[1722245412014,2.35502,3397.0,3396.4,18.75632437]
[1722245412015,2.3552,3396.8,3396.4,18.75632437]
[1722245412216,2.35522,3396.7,3396.3,2.4974]
[1722245412417,2.35531,3396.6,3396.3,2.4974]
[1722245412953,2.35543,3396.4,3396.3,2.4974]
[1722245413100,2.35531,3396.6,3396.3,2.4974]
[1722245413296,2.35523,3396.7,3396.3,2.4974]
[1722245413536,2.35542,3396.5,3396.3,2.4974]
[1722245414417,2.35543,3396.4,3396.3,2.4974]
[1722245416168,2.35543,3396.4,3396.1,18.75632437]
[1722245416541,2.35552,3396.3,3396.1,18.75632437]
[1722245417561,2.35557,3396.2,3396.1,18.75632437]
[1722245418164,2.35557,3396.2,3396.0,2.2752]
[1722245418385,2.35557,3396.2,3395.6,18.75632437]
[1722245418589,2.35557,3396.2,3395.7,2.2873]
[1722245418590,2.35571,3396.0,3395.7,2.2873]
[1722245418934,2.35578,3395.9,3395.7,2.2873]
[1722245419162,2.35585,3395.8,3395.7,2.2873]
[1722245419333,2.3554,3396.5,3395.7,2.2873]
[1722245419542,2.35576,3396.0,3395.7,2.2873]
[1722245420084,2.35578,3395.9,3395.7,2.2873]
[1722245420747,2.35575,3396.0,3395.7,2.2873]
[1722245421160,0.23554,3396.4,3395.7,2.2873]
[1722245421161,2.35563,3396.2,3395.7,2.2873]
[1722245421364,2.2878,3396.9,3395.7,2.2873]
[1722245421365,2.35538,3396.5,3395.8,0.05889382]
[1722245421576,2.3555,3396.3,3395.8,0.05889382]
[1722245421899,2.3555,3396.3,3395.8,1.0365132]
[1722245422101,2.35531,3396.6,3395.9,2.3915]
[1722245422248,2.35523,3396.7,3396.0,2.45038216]
[1722245422448,5.35523,3396.7,3396.0,2.45038216]
[1722245422648,3.0,3396.7,3396.1,0.57837715]
[1722245422902,2.66335422,3396.8,3396.3,2.3752]
[1722245422903,0.30819422,3396.8,3396.3,2.3752]
[1722245423211,0.30819422,3396.8,3396.4,0.05887938]
[1722245423351,0.30819422,3396.8,3396.5,2.3752]
[1722245423697,0.15029,3397.6,3396.5,2.3752]
[1722245423698,2.35495,3397.1,3396.5,2.3752]
[1722245423850,2.35495,3397.1,3396.6,0.23752]
[1722245424058,2.35482,3397.3,3396.7,0.05887229]
[1722245424258,2.50491,3397.6,3396.8,2.4523]
[1722245424653,2.50491,3397.6,3396.9,0.05886897]
[1722245424962,3.0,3397.5,3396.9,0.05886897]
[1722245425354,3.0,3397.5,3396.8,2.4523]
[1722245425560,2.35471,3397.5,3396.9,0.05886895]
[1722245425803,2.35476,3397.4,3396.9,0.05886895]
[1722245426528,2.50491,3397.6,3396.9,0.05886895]
[1722245426848,2.35468,3397.5,3396.9,0.05886895]
[1722245427001,2.50491,3397.6,3396.8,3.67316431]
[1722245427337,2.50491,3397.6,3396.9,0.57837715]
[1722245427338,2.35476,3397.4,3396.9,0.57837715]
[1722245427517,0.15029,3397.6,3396.8,2.4523]
[1722245427714,2.35486,3397.3,3396.8,2.4523]
[1722245428249,2.35508,3397.0,3396.8,2.4523]
[1722245428546,4.70983,3397.2,3396.8,2.4523]
[1722245428740,2.35495,3397.1,3396.8,2.4523]
[1722245429049,2.35502,3397.0,3396.8,2.4523]
[1722245429331,2.35497,3397.1,3396.8,2.4523]
[1722245429940,2.35486,3397.3,3396.8,2.4523]